bitfinex-derivatives/quotes_BTCF0:USTF0_20210703
["timestamp","ask_amount","ask_price","bid_price","bid_amount"]
[1625273233007,1.05900285,33509.0,33505.0,0.00653206]
[1625273233103,1.11800285,33509.0,33505.0,0.00653206]
[1625273234359,0.72172632,33506.0,33505.0,0.00653206]
[1625273234456,1.07330632,33506.0,33505.0,0.00653206]
[1625273234906,5.64160632,33506.0,33505.0,0.00653206]
[1625273235058,1.07330632,33506.0,33505.0,0.00653206]
[1625273235807,5.64170632,33506.0,33505.0,0.00653206]
[1625273235907,5.40812632,33506.0,33505.0,0.00653206]
[1625273236109,0.83972632,33506.0,33505.0,0.00653206]
[1625273236659,5.35492632,33506.0,33505.0,0.00653206]
[1625273236961,5.35492632,33506.0,33504.0,0.9419]
[1625273238013,5.35492632,33506.0,33505.0,0.00653209]
[1625273238513,0.83972632,33506.0,33505.0,0.00653209]
[1625273238662,0.83972632,33506.0,33504.0,0.9419]
[1625273239868,4.3324,33505.0,33504.0,0.9419]
[1625273240065,4.3914,33505.0,33504.0,0.9419]
[1625273247584,0.059,33505.0,33504.0,0.9419]
[1625273247888,0.059,33505.0,33504.0,1.20122]
[1625273248291,0.72172632,33506.0,33504.0,4.90072]
[1625273248542,0.78072632,33506.0,33504.0,4.90725196]
[1625273248840,0.72172632,33506.0,33505.0,0.00653184]
[1625273250396,0.72172632,33506.0,33505.0,0.24710728]
[1625273252050,0.72172632,33506.0,33505.0,1.44710728]
[1625273254107,0.48115088,33506.0,33505.0,1.44710728]
[1625273254208,0.24057544,33513.0,33505.0,1.44710728]
[1625273254308,0.35857544,33513.0,33505.0,1.44710728]
[1625273254411,0.59915088,33513.0,33512.0,0.24057544]
[1625273254610,0.59915088,33513.0,33512.0,0.52845544]
[1625273255763,1.10173868,33513.0,33512.0,0.52845544]
[1625273256416,1.10173868,33513.0,33512.0,0.53497885]
[1625273257167,1.10173868,33513.0,33512.0,0.52845544]
[1625273257517,2.10665879,33513.0,33512.0,0.52845544]
[1625273257969,2.10665879,33513.0,33512.0,0.5349765]
[1625273258067,1.10173868,33513.0,33512.0,0.5349765]
[1625273259369,1.10173868,33513.0,33512.0,0.52845544]
[1625273259618,1.10173868,33513.0,33512.0,0.53497624]
[1625273260775,1.04273868,33513.0,33512.0,0.53497624]
[1625273261076,0.98373868,33513.0,33512.0,0.53497624]
[1625273261477,0.48115088,33513.0,33512.0,0.53497624]
[1625273262232,0.24057544,33513.0,33512.0,0.53497624]
[1625273262480,0.24057544,33513.0,33512.0,0.77555168]
[1625273263831,0.24057544,33513.0,33512.0,1.30236802]
[1625273268141,0.50350617,33518.0,33512.0,1.30236802]
[1625273268242,0.56250617,33518.0,33512.0,1.30236802]
[1625273268393,0.50374126,33517.0,33512.0,1.30236802]
[1625273268541,0.50374126,33517.0,33516.0,0.24057544]
[1625273268994,0.50374126,33517.0,33516.0,0.24709496]
[1625273270598,0.7443167,33517.0,33516.0,0.24709496]
[1625273271903,0.7443167,33517.0,33516.0,0.53286496]
[1625273274210,0.8033167,33517.0,33516.0,0.53286496]
[1625273274309,0.7443167,33517.0,33516.0,0.53286496]
[1625273278118,0.24057544,33517.0,33516.0,0.53286496]
[1625273279168,0.74262264,33517.0,33516.0,0.53286496]
[1625273281375,0.24057544,33517.0,33516.0,0.53286496]
[1625273281675,0.29957544,33517.0,33516.0,0.53286496]
[1625273282028,0.80147652,33517.0,33516.0,0.53286496]
[1625273282225,0.74247652,33517.0,33516.0,0.53286496]
[1625273282983,0.80147652,33517.0,33516.0,0.53286496]
[1625273283682,0.74247652,33517.0,33516.0,0.53286496]
[1625273283781,0.80147652,33517.0,33516.0,0.53286496]
[1625273283982,0.74247652,33517.0,33516.0,0.53286496]
[1625273284133,0.80147652,33517.0,33516.0,0.53286496]
[1625273284432,0.74247652,33517.0,33516.0,0.53286496]
[1625273288035,0.74247652,33517.0,33516.0,0.88481074]
[1625273288386,1.74902858,33517.0,33516.0,0.88481074]
[1625273288836,1.80802858,33517.0,33516.0,0.88481074]
[1625273288986,1.74902858,33517.0,33516.0,0.88481074]
[1625273289186,1.80802858,33517.0,33516.0,0.88481074]
[1625273289687,1.80802858,33517.0,33516.0,0.53286496]
[1625273289989,1.80802858,33517.0,33516.0,0.88493186]
[1625273290138,1.74902858,33517.0,33516.0,0.88493186]
[1625273291393,2.41969703,33517.0,33516.0,0.88493186]
[1625273294597,2.17912159,33517.0,33516.0,0.88493186]
[1625273294698,0.17742159,33517.0,33516.0,1.1845073]
[1625273294847,0.17742159,33517.0,33516.0,1.77161107]
[1625273295558,0.33650141,33524.0,33516.0,5.65592833]
[1625273296103,0.33650141,33524.0,33517.0,0.01900067]
[1625273296202,0.33662881,33527.0,33523.0,1.23118678]
[1625273296302,0.33662881,33527.0,33523.0,1.60897678]
[1625273296659,0.33662881,33527.0,33526.0,0.48115088]
[1625273296752,0.33662881,33527.0,33526.0,0.54015088]
[1625273297156,0.33662881,33527.0,33526.0,0.54667007]
[1625273297354,0.33716259,33529.0,33526.0,0.54667007]
[1625273297654,0.33716259,33529.0,33527.0,0.00651994]
[1625273297756,0.33716259,33529.0,33527.0,0.06551994]
[1625273298005,1.58872033,33535.0,33527.0,0.06551994]
[1625273298006,0.33716381,33531.0,33527.0,0.06551994]
[1625273298206,0.33716381,33531.0,33528.0,0.00651974]
[1625273298307,0.33716381,33531.0,33528.0,0.06551974]
[1625273298455,0.33716381,33531.0,33530.0,0.35151739]
[1625273298558,0.33716381,33531.0,33530.0,0.59865739]
[1625273298657,0.33716381,33531.0,33530.0,0.89823283]
[1625273298755,0.33716381,33531.0,33530.0,0.90475252]
[1625273299057,0.57805688,33532.0,33530.0,0.55323513]
[1625273299558,0.24057544,33532.0,33531.0,0.00651952]
[1625273300108,0.24057544,33532.0,33531.0,0.3578099]
[1625273300758,0.24057544,33532.0,33531.0,0.4168099]
[1625273300859,0.24057544,33532.0,33531.0,0.06551952]
[1625273302311,0.24057544,33532.0,33531.0,0.35764571]
[1625273302511,0.24057544,33532.0,33531.0,0.35112619]
[1625273302911,0.24057544,33532.0,33530.0,0.83885339]
[1625273303412,0.57753686,33532.0,33530.0,0.48771544]
[1625273303611,0.57753686,33532.0,33530.0,0.54671544]
[1625273303715,0.57753686,33532.0,33530.0,0.48771544]
[1625273305166,0.3367791,33531.0,33530.0,0.48771544]
[1625273308572,0.3367791,33531.0,33530.0,0.24057544]
[1625273309975,0.3367791,33531.0,33530.0,0.29957544]
[1625273310426,0.57782203,33532.0,33530.0,0.29957544]
[1625273310526,0.57782203,33532.0,33531.0,4.7817]
[1625273310927,0.24057544,33532.0,33531.0,4.7817]
[1625273311026,0.24057544,33532.0,33530.0,0.46743544]
[1625273311127,0.24057544,33532.0,33530.0,0.52643544]
[1625273312082,0.24057544,33532.0,33530.0,0.46743544]
[1625273312183,0.57768603,33532.0,33530.0,0.46743544]
[1625273316494,0.57768603,33532.0,33530.0,0.52643544]
[1625273317046,0.33711059,33532.0,33531.0,0.00652511]
[1625273317196,0.33711059,33532.0,33531.0,0.06552511]
[1625273317346,0.33711059,33532.0,33531.0,0.12452511]
[1625273318046,0.24057544,33535.0,33531.0,1.35320765]
[1625273318396,0.24057544,33535.0,33532.0,0.06552726]
[1625273318495,0.24057544,33535.0,33532.0,0.12452726]
[1625273318746,0.24057544,33535.0,33534.0,0.24057544]
[1625273318947,0.24057544,33535.0,33534.0,0.35857544]
[1625273319150,0.24057544,33535.0,33534.0,0.36510256]
[1625273320903,0.24057544,33535.0,33534.0,0.71593551]
[1625273321655,0.24057544,33535.0,33534.0,0.36510256]
[1625273322205,0.24057544,33535.0,33534.0,0.71587396]
[1625273322454,0.24057544,33535.0,33534.0,5.02517396]
[1625273323805,0.24057544,33535.0,33534.0,0.71587396]
[1625273324208,0.24057544,33535.0,33534.0,0.30610256]
[1625273324556,0.47012544,33535.0,33534.0,0.24710256]
[1625273325008,0.52912544,33535.0,33534.0,0.24710256]
[1625273325109,0.86885112,33535.0,33534.0,0.24710256]
[1625273325610,0.92785112,33535.0,33534.0,0.24710256]
[1625273326058,0.92785112,33535.0,33534.0,0.00652712]
[1625273326159,6.48425715,33535.0,33534.0,0.00652712]
[1625273326569,6.48425715,33535.0,33528.0,0.00652971]
[1625273326811,0.24057544,33529.0,33528.0,0.00652971]
[1625273326960,0.29957544,33529.0,33528.0,0.00652971]
[1625273327060,0.29957544,33529.0,33527.0,0.00653032]
[1625273327363,1.3151439,33529.0,33528.0,0.00653034]
[1625273327612,1.3151439,33529.0,33527.0,0.00653047]
[1625273329221,0.29957544,33529.0,33527.0,0.00653047]
[1625273329569,0.33897521,33528.0,33527.0,0.00653047]
[1625273330069,0.29957544,33529.0,33527.0,0.00653047]
[1625273331620,0.63909952,33529.0,33527.0,0.00653047]
[1625273334930,0.29957544,33529.0,33527.0,0.35755759]
[1625273335330,0.29957544,33529.0,33528.0,0.00653526]
[1625273336131,0.29957544,33529.0,33527.0,0.35759956]
[1625273336382,0.29957544,33529.0,33528.0,0.00653526]
[1625273337185,0.29957544,33529.0,33528.0,0.35766391]
[1625273337737,0.29957544,33529.0,33528.0,0.35112865]
[1625273337987,0.29957544,33529.0,33528.0,0.35766421]
[1625273340042,0.64042536,33529.0,33528.0,0.00653556]
[1625273340746,0.29957544,33529.0,33528.0,0.35778092]
[1625273341803,0.29957544,33529.0,33528.0,0.00653556]
[1625273341898,0.64031585,33529.0,33528.0,0.00653556]
[1625273342447,0.29957544,33529.0,33528.0,0.00653556]
[1625273342550,0.59641544,33529.0,33528.0,0.00653556]
[1625273342798,0.59641544,33529.0,33527.0,0.00653602]
[1625273343700,0.34031951,33528.0,33527.0,0.00653602]
[1625273343902,0.39931951,33528.0,33527.0,0.00653602]
[1625273344201,0.059,33528.0,33527.0,0.00653602]
[1625273345355,1.5598998,33529.0,33527.0,0.00653602]
[1625273345605,1.6188998,33529.0,33527.0,0.00653602]
[1625273346809,1.6188998,33529.0,33527.0,0.31357602]
[1625273346908,1.6188998,33529.0,33528.0,0.24057544]
[1625273347158,1.6188998,33529.0,33528.0,4.64611105]
[1625273347362,0.68187437,33529.0,33528.0,4.64611105]
[1625273347460,0.38503437,33529.0,33528.0,4.64611105]
[1625273347810,0.38503437,33529.0,33528.0,0.24711105]
[1625273347910,0.72656626,33529.0,33528.0,0.24711105]
[1625273348862,0.29957544,33529.0,33528.0,0.68659786]
[1625273349969,1.32373481,33529.0,33528.0,0.5987005]
[1625273351171,2.51836133,33529.0,33528.0,0.33509214]
[1625273351421,6.86246133,33529.0,33528.0,0.33509214]
[1625273351570,2.51836133,33529.0,33528.0,0.33509214]
[1625273351721,3.88279899,33529.0,33528.0,0.24711105]
[1625273352573,4.08917899,33529.0,33528.0,0.24711105]
[1625273355430,4.772436,33529.0,33528.0,0.24711105]
[1625273367756,4.566056,33529.0,33528.0,5.69763105]
[1625273368107,4.566056,33529.0,33528.0,5.78567086]
[1625273368456,4.566056,33529.0,33528.0,0.59607086]
[1625273368659,3.20161834,33529.0,33528.0,0.50803105]
[1625273369158,3.20161834,33529.0,33528.0,1.2122601]
[1625273371415,3.20161834,33529.0,33528.0,2.26867621]
[1625273371966,3.20161834,33529.0,33528.0,1.2122601]
[1625273375372,3.20161834,33529.0,33528.0,2.26863714]
[1625273375973,3.20161834,33529.0,33528.0,1.2122601]
[1625273377075,4.59018598,33529.0,33528.0,0.50803105]
[1625273378229,4.59018598,33529.0,33528.0,1.21254364]
[1625273378783,3.20161834,33529.0,33528.0,2.26926557]
[1625273379885,2.00699182,33529.0,33528.0,3.50212078]
[1625273380433,3.2223274,33529.0,33528.0,3.50212078]
[1625273383137,3.4519874,33529.0,33528.0,3.50212078]
[1625273383238,3.4519874,33529.0,33528.0,2.00834557]
[1625273383239,4.84069813,33529.0,33528.0,2.00834557]
[1625273383540,9.47269813,33529.0,33528.0,2.00834557]
[1625273383889,11.03602382,33529.0,33528.0,0.77626104]
[1625273384041,6.40402382,33529.0,33528.0,0.77626104]
[1625273384895,6.40402382,33529.0,33528.0,0.24711105]
[1625273385695,6.92501735,33529.0,33528.0,0.24711105]
[1625273386247,6.92501735,33529.0,33528.0,0.33532238]
[1625273390406,6.92501735,33529.0,33528.0,0.51172678]
[1625273391060,6.92501735,33529.0,33528.0,0.33532238]
[1625273394319,6.92501735,33529.0,33528.0,0.24711105]
[1625273394870,6.92501735,33529.0,33528.0,0.51170257]
[1625273395469,6.92501735,33529.0,33528.0,0.86449189]
[1625273397273,6.92501735,33529.0,33528.0,1.4819341]
[1625273398126,5.36169166,33529.0,33528.0,1.4819341]
[1625273398726,5.36169166,33529.0,33528.0,2.5403811]
[1625273399728,5.36169166,33529.0,33528.0,0.77632093]
[1625273399729,6.92334221,33529.0,33528.0,0.77632093]
[1625273400334,6.92334221,33529.0,33528.0,1.12917358]
[1625273400936,6.92334221,33529.0,33528.0,0.86461012]
[1625273401486,6.92334221,33529.0,33528.0,0.77639465]
[1625273402038,6.92334221,33529.0,33528.0,0.86461023]
[1625273402589,6.92334221,33529.0,33528.0,0.77639465]
[1625273402989,6.92334221,33529.0,33528.0,1.12925203]
[1625273408506,6.92334221,33529.0,33528.0,0.51179811]
[1625273409457,6.92334221,33529.0,33528.0,0.86472838]
[1625273410358,6.92334221,33529.0,33528.0,0.77649936]
[1625273410659,6.93439907,33529.0,33528.0,0.77649936]
[1625273410909,6.92334221,33529.0,33528.0,1.12944004]
[1625273411510,6.92334221,33529.0,33528.0,1.48235323]
[1625273412562,6.92334221,33529.0,33528.0,0.77650977]
[1625273412761,6.93439878,33529.0,33528.0,0.77650977]
[1625273414615,6.92334221,33529.0,33528.0,0.77650977]
[1625273414965,6.92334221,33529.0,33528.0,1.48235983]
[1625273415465,6.92334221,33529.0,33528.0,6.83035983]
[1625273415566,6.92334221,33529.0,33528.0,7.88913854]
[1625273415867,5.36169166,33529.0,33528.0,2.54113854]
[1625273422526,5.13203166,33529.0,33528.0,2.73187854]
[1625273422627,5.13203166,33529.0,33528.0,2.79087854]
[1625273423078,4.89145622,33529.0,33528.0,2.79087854]
[1625273423278,4.83245622,33529.0,33528.0,6.87917854]
[1625273423378,4.83245622,33529.0,33528.0,7.11975398]
[1625273423477,4.83245622,33529.0,33528.0,9.76631354]
[1625273423478,2.22840991,33529.0,33528.0,9.76631354]
[1625273424029,2.22840991,33529.0,33528.0,9.7790993]
[1625273424127,0.51957254,33529.0,33528.0,11.36677767]
[1625273424680,0.08671818,33532.0,33528.0,11.36677767]
[1625273424778,0.08671818,33532.0,33528.0,11.35399191]
[1625273425028,0.08671818,33532.0,33529.0,0.00655293]
[1625273425129,0.08671818,33532.0,33529.0,0.12455293]
[1625273425228,0.08671818,33532.0,33531.0,6.52149045]
[1625273425328,0.08671818,33532.0,33531.0,6.82106589]
[1625273425428,0.08671818,33532.0,33531.0,6.88006589]
[1625273425579,0.08671818,33532.0,33531.0,6.88661891]
[1625273426231,0.25991827,33532.0,33531.0,6.88661891]
[1625273426782,0.60607115,33533.0,33531.0,6.88661891]
[1625273427134,0.60607115,33533.0,33532.0,0.00655308]
[1625273427236,0.60607115,33533.0,33532.0,0.12455308]
[1625273427335,0.60607115,33533.0,33532.0,5.2973956]
[1625273428338,0.25971771,33533.0,33532.0,5.2973956]
[1625273429238,0.08663021,33533.0,33532.0,5.2973956]
[1625273430542,0.25965434,33534.0,33532.0,5.2973956]
[1625273430742,0.25965434,33534.0,33533.0,0.118]
[1625273430942,0.25965434,33534.0,33533.0,0.12455268]
[1625273431144,0.86471937,33535.0,33533.0,0.12455268]
[1625273431145,0.60565308,33535.0,33533.0,9.03963441]
[1625273431394,0.60565308,33535.0,33534.0,0.2471282]
[1625273431494,0.60565308,33535.0,33534.0,0.3651282]
[1625273431643,0.60565308,33535.0,33534.0,5.29286943]
[1625273432846,0.08662054,33535.0,33534.0,5.29286943]
[1625273433547,0.08662054,33535.0,33534.0,5.23386943]
[1625273433998,0.08662054,33535.0,33534.0,5.29286943]
[1625273434401,0.08653008,33536.0,33534.0,5.29286943]
[1625273434901,0.60501376,33537.0,33535.0,3.52381286]
[1625273435001,0.60501376,33537.0,33535.0,3.86562286]
[1625273435152,0.60501376,33537.0,33536.0,0.0065526]
[1625273435351,0.60501376,33537.0,33536.0,0.0655526]
[1625273435455,0.60501376,33537.0,33536.0,2.59163035]
[1625273435804,0.5184896,33537.0,33536.0,2.59163035]
[1625273436154,0.863547,33537.0,33536.0,2.59163035]
[1625273437511,0.51836659,33537.0,33536.0,2.59163035]
[1625273438011,0.60482727,33537.0,33536.0,2.59163035]
[1625273438613,0.51836659,33537.0,33536.0,2.59163035]
[1625273439964,0.60481857,33537.0,33536.0,2.59163035]
[1625273440914,0.51794811,33538.0,33536.0,2.59163035]
[1625273440915,0.60424394,33538.0,33536.0,2.59163035]
[1625273441264,0.60424394,33538.0,33537.0,0.0065524]
[1625273441364,0.60424394,33538.0,33537.0,0.0655524]
[1625273441466,0.60424394,33538.0,33537.0,3.6541524]
[1625273441665,0.08641913,33538.0,33537.0,5.9381961]
[1625273442415,0.08641913,33538.0,33537.0,5.9971961]
[1625273442669,0.24057544,33539.0,33537.0,7.22672646]
[1625273443168,0.24057544,33539.0,33538.0,0.00655183]
[1625273443317,0.24057544,33539.0,33538.0,2.34895178]
[1625273443417,0.24057544,33539.0,33538.0,2.40795178]
[1625273443920,0.60438577,33541.0,33538.0,2.40795178]
[1625273444323,0.60432602,33542.0,33538.0,3.63708205]
[1625273444525,0.60432602,33542.0,33539.0,0.00655154]
[1625273444620,0.60432602,33542.0,33539.0,0.12455154]
[1625273444871,0.08643087,33542.0,33541.0,1.28810442]
[1625273444972,0.08643087,33542.0,33541.0,1.34710442]
[1625273445274,0.08643087,33542.0,33541.0,1.35365599]
[1625273445374,0.84498631,33543.0,33541.0,1.35365599]
[1625273445523,0.84498631,33543.0,33542.0,0.61159544]
[1625273445773,0.84498631,33543.0,33542.0,1.55479996]
[1625273445873,0.84498631,33543.0,33542.0,1.49579996]
[1625273446225,0.7585544,33543.0,33542.0,1.14474169]
[1625273446473,0.7585544,33543.0,33542.0,1.20374169]
[1625273446623,1.10323758,33543.0,33542.0,1.20374169]
[1625273446723,1.10323758,33543.0,33542.0,1.29150881]
[1625273447226,0.84483489,33543.0,33542.0,1.55479381]
[1625273447473,0.84483489,33543.0,33542.0,5.67709381]
[1625273447875,0.32696547,33543.0,33542.0,5.67709381]
[1625273447975,0.32696547,33543.0,33542.0,1.55479381]
[1625273448074,0.32696547,33543.0,33542.0,1.49579381]
[1625273448325,0.49971833,33543.0,33542.0,1.55479381]
[1625273448876,0.49971833,33543.0,33542.0,1.49579381]
[1625273448976,0.49971833,33543.0,33542.0,1.55479381]
[1625273449076,0.49971833,33543.0,33542.0,1.49579381]
[1625273449176,0.49971833,33543.0,33542.0,1.55479381]
[1625273449278,0.84507372,33543.0,33542.0,1.14469577]
[1625273449576,0.84507372,33543.0,33542.0,1.20369577]
[1625273449676,0.84507372,33543.0,33542.0,1.14469577]
[1625273449781,0.32696547,33543.0,33542.0,1.14469577]
[1625273450327,0.24057544,33543.0,33542.0,1.14450067]
[1625273450778,0.49966244,33543.0,33542.0,1.23224177]
[1625273451382,0.75825469,33543.0,33542.0,0.70587485]
[1625273451930,1.10282092,33543.0,33542.0,0.61814703]
[1625273452484,0.75815037,33543.0,33542.0,0.70587102]
[1625273453285,0.84449705,33543.0,33542.0,0.70587102]
[1625273453835,0.84449705,33543.0,33542.0,0.76487102]
[1625273454038,0.24057544,33543.0,33542.0,1.20341272]
[1625273454388,0.24057544,33543.0,33542.0,1.55428511]
[1625273454588,0.60426686,33544.0,33542.0,1.55428511]
[1625273454688,0.60426686,33544.0,33543.0,4.2092]
[1625273454789,0.60426686,33544.0,33543.0,4.33375106]
[1625273454940,0.25909473,33544.0,33543.0,4.33375106]
[1625273455494,0.60427034,33545.0,33543.0,5.18824209]
[1625273455740,0.60427034,33545.0,33543.0,0.97904209]
[1625273455841,0.60427034,33545.0,33544.0,0.00655097]
[1625273456041,0.60427034,33545.0,33544.0,0.21225271]
[1625273457346,0.32703898,33546.0,33544.0,1.35239908]
[1625273457647,0.32703898,33546.0,33544.0,1.29339908]
[1625273457747,0.32703898,33546.0,33545.0,0.00655067]
[1625273457850,0.24057544,33546.0,33545.0,0.62034897]
[1625273457947,0.24057544,33546.0,33545.0,0.67934897]
[1625273458349,0.49971748,33546.0,33545.0,0.15323614]
[1625273458902,0.24057544,33546.0,33545.0,0.67935455]
[1625273460104,0.24057544,33546.0,33545.0,0.59166908]
[1625273460612,0.24057544,33546.0,33545.0,0.6793523]
[1625273461114,0.24057544,33546.0,33545.0,0.59166908]
[1625273461614,0.24057544,33546.0,33545.0,0.94239084]
[1625273461965,0.24057544,33546.0,33545.0,0.59163363]
[1625273462419,0.24057544,33546.0,33545.0,0.59156306]
[1625273462971,0.24057544,33546.0,33545.0,1.23391448]
[1625273463220,0.24057544,33546.0,33545.0,1.29291448]
[1625273464723,0.24057544,33546.0,33545.0,1.23391448]
[1625273464873,0.24057544,33546.0,33545.0,1.29291448]
[1625273466527,0.24057544,33546.0,33545.0,1.23391448]
[1625273466628,0.24057544,33546.0,33545.0,1.29291448]
[1625273466879,0.24057544,33546.0,33545.0,1.23391448]
[1625273467084,0.24057544,33546.0,33545.0,1.29291448]
[1625273468135,0.24057544,33546.0,33545.0,1.23391448]
[1625273468235,0.24057544,33546.0,33545.0,1.29291448]
[1625273468387,0.24057544,33546.0,33545.0,1.23391448]
[1625273468485,0.24057544,33546.0,33545.0,1.29291448]
[1625273471493,0.24057544,33546.0,33545.0,1.23391448]
[1625273471593,0.24057544,33546.0,33545.0,2.28639871]
[1625273473497,0.51341544,33546.0,33545.0,2.28639871]
[1625273474148,1.03285689,33546.0,33545.0,0.26977586]
[1625273474753,1.72523524,33546.0,33545.0,0.00655067]
[1625273475302,1.03285689,33546.0,33545.0,0.26977485]
[1625273475753,1.72533292,33546.0,33545.0,0.26977485]
[1625273477206,2.76452047,33546.0,33545.0,0.62101882]
[1625273477556,1.72533292,33546.0,33545.0,0.53344538]
[1625273478710,1.03480444,33546.0,33545.0,1.2949373]
[1625273478808,0.76196444,33546.0,33545.0,1.2949373]
[1625273479211,0.84915288,33546.0,33545.0,2.34909175]
[1625273480112,0.50161811,33546.0,33545.0,3.57888955]
[1625273480514,0.76342669,33546.0,33545.0,7.26248955]
[1625273480613,0.76342669,33546.0,33545.0,7.20348955]
[1625273481218,1.11289226,33546.0,33545.0,7.20348955]
[1625273482670,1.46218133,33546.0,33545.0,7.20348955]
[1625273483122,1.46218133,33546.0,33545.0,8.61102961]
[1625273483123,0.76389524,33546.0,33545.0,8.61102961]
[1625273483623,1.11319569,33546.0,33545.0,8.61102961]
[1625273484125,0.76389524,33546.0,33545.0,8.61102961]
[1625273484426,1.46166695,33546.0,33545.0,8.61102961]
[1625273485427,0.76389524,33546.0,33545.0,8.61102961]
[1625273485727,1.4608228,33546.0,33545.0,8.61102961]
[1625273487480,2.50511629,33546.0,33545.0,7.20348955]
[1625273495499,3.72661449,33546.0,33545.0,7.20348955]
[1625273499455,3.72661449,33546.0,33545.0,3.51988955]
[1625273499707,3.94126449,33546.0,33545.0,3.51988955]
[1625273500307,4.00026449,33546.0,33545.0,3.51988955]
[1625273500608,5.39491793,33546.0,33545.0,2.29009175]
[1625273501310,6.9631753,33546.0,33545.0,0.62353383]
[1625273501509,6.97422412,33546.0,33545.0,0.62353383]
[1625273501712,7.21479956,33546.0,33545.0,0.62353383]
[1625273501814,7.21479956,33546.0,33545.0,0.00655067]
[1625273502014,12.32159956,33546.0,33545.0,0.00655067]
[1625273502215,7.21479956,33546.0,33545.0,0.00655067]
[1625273502316,7.21479956,33546.0,33544.0,0.00655725]
[1625273502515,7.21479956,33546.0,33545.0,0.00655707]
[1625273502819,7.20375074,33546.0,33544.0,0.00655704]
[1625273502920,6.4505568,33545.0,33544.0,0.2709621]
[1625273503020,6.5095568,33545.0,33544.0,0.2709621]
[1625273503119,6.5095568,33545.0,33544.0,0.26440506]
[1625273503320,6.5095568,33545.0,33544.0,0.27096207]
[1625273503521,6.5095568,33545.0,33544.0,0.62353593]
[1625273505276,6.7086568,33545.0,33544.0,0.88788374]
[1625273505778,6.7086568,33545.0,33544.0,0.27093881]
[1625273506078,6.7086568,33545.0,33544.0,0.09468428]
[1625273506427,6.7086568,33545.0,33544.0,0.00655701]
[1625273509536,6.5095568,33545.0,33544.0,0.00655701]
[1625273510490,6.5095568,33545.0,33543.0,0.00655709]
[1625273511392,6.56304426,33544.0,33543.0,0.00655709]
[1625273514153,4.98106019,33544.0,33543.0,0.53490173]
[1625273515354,4.98106019,33544.0,33543.0,0.88707341]
[1625273515856,4.98106019,33544.0,33543.0,0.53487746]
[1625273516412,4.98106019,33544.0,33543.0,0.53483028]
[1625273516960,4.98106019,33544.0,33543.0,5.84901468]
[1625273517060,4.98106019,33544.0,33543.0,0.88701468]
[1625273518062,4.98106019,33544.0,33543.0,0.88045759]
[1625273518264,4.98106019,33544.0,33543.0,0.62286261]
[1625273519318,4.98106019,33544.0,33543.0,0.27067821]
[1625273519771,4.98106019,33544.0,33543.0,0.62281251]
[1625273520321,4.98106019,33544.0,33543.0,0.27067821]
[1625273520872,4.98106019,33544.0,33543.0,0.62281132]
[1625273522226,4.98106019,33544.0,33543.0,0.88686984]
[1625273522829,4.98106019,33544.0,33543.0,0.53475252]
[1625273523378,4.98106019,33544.0,33543.0,0.62278418]
[1625273524678,5.04006019,33544.0,33543.0,0.61622759]
[1625273524781,5.04006019,33544.0,33543.0,8.418e-05]
[1625273524978,5.05111626,33544.0,33543.0,8.418e-05]
[1625273525729,8.38341622,33544.0,33535.0,1.23265132]
[1625273525828,0.48115088,33536.0,33535.0,1.23265132]
[1625273525929,0.82308088,33536.0,33535.0,1.23265132]
[1625273526279,0.82308088,33536.0,33535.0,1.23919639]
[1625273526380,5.73196969,33536.0,33535.0,0.53482421]
[1625273526930,5.73196969,33536.0,33535.0,0.00654507]
[1625273528186,5.73196969,33536.0,33534.0,0.00654547]
[1625273528686,4.90807222,33535.0,33534.0,0.00654547]
[1625273528785,4.96707222,33535.0,33534.0,0.00654547]
[1625273535896,5.20764766,33535.0,33534.0,0.00654547]
[1625273541054,5.20764766,33535.0,33533.0,0.9103]
[1625273541157,5.20764766,33535.0,33534.0,0.00655265]
[1625273541405,1.70180668,33535.0,33534.0,0.00655265]
[1625273541656,5.19983851,33535.0,33534.0,0.00655265]
[1625273541761,5.19983851,33535.0,33534.0,0.23233265]
[1625273542306,5.19983851,33535.0,33534.0,3.92413265]
[1625273542557,2.57336608,33535.0,33534.0,4.45123052]
[1625273543108,0.29957544,33535.0,33534.0,6.2080563]
[1625273543210,0.29957544,33535.0,33534.0,2.5162563]
[1625273543911,0.82551894,33535.0,33534.0,2.75683174]
[1625273544361,1.52657848,33535.0,33534.0,1.70273627]
[1625273545214,1.52657848,33535.0,33534.0,1.76173627]
[1625273546114,2.57828145,33535.0,33534.0,1.76173627]
[1625273546564,2.51928145,33535.0,33534.0,1.76173627]
[1625273546868,2.57828145,33535.0,33534.0,1.76173627]
[1625273549221,2.51928145,33535.0,33534.0,1.76173627]
[1625273549971,2.51928145,33535.0,33534.0,2.81665677]
[1625273552027,1.46757848,33535.0,33534.0,2.81665677]
[1625273552582,1.46757848,33535.0,33534.0,4.04444166]
[1625273553885,0.76651894,33535.0,33534.0,4.04444166]
[1625273553986,0.5259435,33535.0,33534.0,4.04444166]
[1625273554636,0.5259435,33535.0,33534.0,3.98544166]
[1625273554637,1.22991903,33535.0,33534.0,3.98544166]
[1625273555041,2.28581405,33535.0,33534.0,2.75765677]
[1625273556090,3.51780937,33535.0,33534.0,1.70273627]
[1625273556293,1.40796952,33536.0,33534.0,1.70273627]
[1625273556496,1.46696952,33536.0,33534.0,1.70273627]
[1625273556594,1.93656844,33535.0,33534.0,2.75556423]
[1625273556746,1.99556844,33535.0,33534.0,2.75556423]
[1625273556893,1.99556844,33535.0,33534.0,2.74901158]
[1625273557093,1.99556844,33535.0,33534.0,2.75555706]
[1625273557196,3.58011728,33535.0,33534.0,1.7027291]
[1625273557795,3.52111728,33535.0,33534.0,6.9003291]
[1625273558649,3.52111728,33535.0,33534.0,10.57547845]
[1625273558650,0.52824162,33535.0,33534.0,10.57547845]
[1625273558948,0.52824162,33535.0,33534.0,5.43687845]
[1625273559201,1.23264236,33535.0,33534.0,5.43687845]
[1625273561655,2.28943655,33535.0,33534.0,4.03682155]
[1625273563154,2.28943655,33535.0,33534.0,3.97782155]
[1625273564659,3.52248549,33535.0,33534.0,3.97782155]
[1625273564761,3.72645549,33535.0,33534.0,3.97782155]
[1625273568618,3.72645549,33535.0,33534.0,2.75277177]
[1625273569371,3.72645549,33535.0,33534.0,2.81177177]
[1625273569469,3.52248549,33535.0,33534.0,2.81177177]
[1625273570073,2.28943655,33535.0,33534.0,4.03522371]
[1625273570572,3.5226848,33535.0,33534.0,4.03522371]
[1625273570672,3.5226848,33535.0,33534.0,4.09422371]
[1625273571223,2.28943655,33535.0,33534.0,5.49095373]
[1625273571823,2.28943655,33535.0,33534.0,5.49094399]
[1625273571926,2.28943655,33535.0,33534.0,5.43194399]
[1625273572976,2.28943655,33535.0,33534.0,5.37294399]
[1625273573327,2.28943655,33535.0,33534.0,3.97621397]
[1625273573878,3.5227985,33535.0,33534.0,3.97621397]
[1625273574328,4.93242535,33535.0,33534.0,2.75276203]
[1625273575279,3.5227985,33535.0,33534.0,2.75276203]
[1625273575630,3.5227985,33535.0,33534.0,3.9773959]
[1625273576031,3.8018285,33535.0,33534.0,3.9773959]
[1625273576281,5.21172304,33535.0,33534.0,3.9773959]
[1625273576683,5.21172304,33535.0,33534.0,2.75276203]
[1625273579748,3.8018285,33535.0,33534.0,5.38143304]